[Event "Titled Tuesday Blitz June 20 Late 2023"]
[White "jasardo"]
[Black "Sviridov, Valery"]
[BlackFideId "4120680"]
[WhiteElo "2769"]
[BlackElo "2457"]
[Result "0-1"]
[Round "4"]
[TimeControl "180+2"]
[Date "2023.06.20"]
[WhiteClock "0:00:11"]
[BlackClock "0:00:48"]
[Board "9"]

1. d4 {[%clk 0:03:00]}  g6 {[%clk 0:02:55]} 2. c4 {[%clk 0:03:00]}  Bg7 {[%clk 0:02:54]} 3. Nc3 {[%clk 0:03:00]}  d6 {[%clk 0:02:55]} 4. e4 {[%clk 0:03:00]}  e5 {[%clk 0:02:54]} 5. dxe5 {[%clk 0:02:55]}  dxe5 {[%clk 0:02:55]} 6. Qxd8+ {[%clk 0:02:55]}  Kxd8 {[%clk 0:02:56]} 7. c5 {[%clk 0:02:52]}  Be6 {[%clk 0:02:55]} 8. Be3 {[%clk 0:02:49]}  Nd7 {[%clk 0:02:54]} 9. O-O-O {[%clk 0:02:46]}  Bh6 {[%clk 0:02:54]} 10. Bxh6 {[%clk 0:02:41]}  Nxh6 {[%clk 0:02:55]} 11. Nf3 {[%clk 0:02:41]}  f6 {[%clk 0:02:55]} 12. h3 {[%clk 0:02:30]}  c6 {[%clk 0:02:53]} 13. b4 {[%clk 0:02:17]}  Ke7 {[%clk 0:02:51]} 14. a3 {[%clk 0:02:13]}  a5 {[%clk 0:02:50]} 15. Kb2 {[%clk 0:02:13]}  Rhb8 {[%clk 0:02:45]} 16. Nd2 {[%clk 0:02:08]}  b6 {[%clk 0:02:45]} 17. cxb6 {[%clk 0:02:07]}  Rxb6 {[%clk 0:02:45]} 18. b5 {[%clk 0:02:05]}  a4 {[%clk 0:02:36]} 19. Nc4 {[%clk 0:01:52]}  Bxc4 {[%clk 0:02:35]} 20. Bxc4 {[%clk 0:01:53]}  Nc5 {[%clk 0:02:18]} 21. Ka2 {[%clk 0:01:52]}  Ra5 {[%clk 0:01:25]} 22. Rd2 {[%clk 0:01:41]}  Ne6 {[%clk 0:01:23]} 23. Bxe6 {[%clk 0:01:38]}  Kxe6 {[%clk 0:01:24]} 24. Rhd1 {[%clk 0:01:27]}  cxb5 {[%clk 0:01:24]} 25. Nd5 {[%clk 0:01:27]}  Rb7 {[%clk 0:01:24]} 26. Nb4 {[%clk 0:01:26]}  Ra8 {[%clk 0:01:18]} 27. Rd6+ {[%clk 0:01:23]}  Kf7 {[%clk 0:01:19]} 28. Rd7+ {[%clk 0:01:21]}  Rxd7 {[%clk 0:01:18]} 29. Rxd7+ {[%clk 0:01:22]}  Kg8 {[%clk 0:01:19]} 30. Nd5 {[%clk 0:01:21]}  Rf8 {[%clk 0:01:19]} 31. g4 {[%clk 0:01:14]}  f5 {[%clk 0:01:05]} 32. g5 {[%clk 0:01:08]}  Nf7 {[%clk 0:01:06]} 33. h4 {[%clk 0:01:02]}  Kg7 {[%clk 0:01:04]} 34. exf5 {[%clk 0:00:57]}  gxf5 {[%clk 0:01:04]} 35. Ne7 {[%clk 0:00:56]}  f4 {[%clk 0:01:02]} 36. f3 {[%clk 0:00:53]}  Rd8 {[%clk 0:00:58]} 37. Rb7 {[%clk 0:00:50]}  e4 {[%clk 0:00:54]} 38. fxe4 {[%clk 0:00:46]}  f3 {[%clk 0:00:55]} 39. Nf5+ {[%clk 0:00:46]}  Kf8 {[%clk 0:00:55]} 40. Rxb5 {[%clk 0:00:39]}  f2 {[%clk 0:00:53]} 41. Rb1 {[%clk 0:00:39]}  Rd2+ {[%clk 0:00:48]} 42. Ka1 {[%clk 0:00:39]}  Nd6 {[%clk 0:00:47]} 43. Nxd6 {[%clk 0:00:11]}  Rxd6 {[%clk 0:00:48]} 0-1


[Site "https://www.chess.com"]

[Event "Titled Tuesday Blitz June 20 Late 2023"]
[White "Jaracz, Pawel"]
[Black "Bortnyk, Mykola"]
[WhiteFideId "1102222"]
[BlackFideId "14120836"]
[WhiteElo "2454"]
[BlackElo "2592"]
[Result "1-0"]
[Round "4"]
[TimeControl "180+2"]
[Date "2023.06.20"]
[WhiteClock "0:00:06"]
[BlackClock "0:00:09"]
[Board "12"]

1. e4 {[%clk 0:03:00]}  Nf6 {[%clk 0:02:59]} 2. Nf3 {[%clk 0:03:00]}  Nxe4 {[%clk 0:03:00]} 3. c4 {[%clk 0:02:53]}  d5 {[%clk 0:02:55]} 4. Nc3 {[%clk 0:02:52]}  Nxc3 {[%clk 0:02:55]} 5. dxc3 {[%clk 0:02:51]}  c6 {[%clk 0:02:52]} 6. Bf4 {[%clk 0:02:47]}  Bf5 {[%clk 0:02:47]} 7. Qb3 {[%clk 0:02:43]}  Qb6 {[%clk 0:02:43]} 8. cxd5 {[%clk 0:02:33]}  Qxb3 {[%clk 0:02:41]} 9. axb3 {[%clk 0:02:33]}  cxd5 {[%clk 0:02:41]} 10. Bxb8 {[%clk 0:02:28]}  Rxb8 {[%clk 0:02:42]} 11. Rxa7 {[%clk 0:02:28]}  Bd7 {[%clk 0:02:38]} 12. Ne5 {[%clk 0:02:17]}  e6 {[%clk 0:02:37]} 13. Nxd7 {[%clk 0:02:09]}  Kxd7 {[%clk 0:02:38]} 14. Bb5+ {[%clk 0:02:09]}  Kc7 {[%clk 0:02:38]} 15. Ra4 {[%clk 0:02:06]}  Kb6 {[%clk 0:02:29]} 16. Be2 {[%clk 0:02:02]}  Bd6 {[%clk 0:02:28]} 17. Kd2 {[%clk 0:02:02]}  Ra8 {[%clk 0:02:25]} 18. g3 {[%clk 0:01:58]}  Rxa4 {[%clk 0:02:24]} 19. bxa4 {[%clk 0:01:59]}  Ra8 {[%clk 0:02:21]} 20. Ra1 {[%clk 0:01:59]}  g5 {[%clk 0:02:10]} 21. b4 {[%clk 0:01:59]}  Kc7 {[%clk 0:02:08]} 22. a5 {[%clk 0:01:56]}  f5 {[%clk 0:01:58]} 23. Kc2 {[%clk 0:01:54]}  Be5 {[%clk 0:01:52]} 24. Kb3 {[%clk 0:01:53]}  Kd6 {[%clk 0:01:49]} 25. Rd1 {[%clk 0:01:50]}  Bf6 {[%clk 0:01:44]} 26. c4 {[%clk 0:01:50]}  d4 {[%clk 0:01:44]} 27. c5+ {[%clk 0:01:50]}  Kc7 {[%clk 0:01:44]} 28. Bd3 {[%clk 0:01:43]}  Bg7 {[%clk 0:01:29]} 29. Re1 {[%clk 0:01:41]}  Kd7 {[%clk 0:01:29]} 30. Ka4 {[%clk 0:01:29]}  Rf8 {[%clk 0:01:27]} 31. b5 {[%clk 0:01:20]}  e5 {[%clk 0:01:26]} 32. b6 {[%clk 0:01:18]}  Kc6 {[%clk 0:01:22]} 33. Kb4 {[%clk 0:01:17]}  e4 {[%clk 0:01:18]} 34. Bb5+ {[%clk 0:01:11]}  Kd5 {[%clk 0:01:18]} 35. c6 {[%clk 0:01:03]}  bxc6 {[%clk 0:01:07]} 36. Bc4+ {[%clk 0:00:50]}  Ke5 {[%clk 0:01:07]} 37. a6 {[%clk 0:00:50]}  Rb8 {[%clk 0:01:08]} 38. Ka5 {[%clk 0:00:40]}  Bf8 {[%clk 0:00:49]} 39. a7 {[%clk 0:00:40]}  Ra8 {[%clk 0:00:49]} 40. f4+ {[%clk 0:00:35]}  gxf4 {[%clk 0:00:47]} 41. gxf4+ {[%clk 0:00:34]}  Kxf4 {[%clk 0:00:47]} 42. Ka6 {[%clk 0:00:18]}  Bc5 {[%clk 0:00:48]} 43. Kb7 {[%clk 0:00:18]}  Re8 {[%clk 0:00:29]} 44. Rf1+ {[%clk 0:00:17]}  Ke5 {[%clk 0:00:28]} 45. Kxc6 {[%clk 0:00:14]}  Rc8+ {[%clk 0:00:22]} 46. Kb7 {[%clk 0:00:14]}  Re8 {[%clk 0:00:19]} 47. Kc6 {[%clk 0:00:12]}  Rc8+ {[%clk 0:00:19]} 48. Kd7 {[%clk 0:00:12]}  Ra8 {[%clk 0:00:18]} 49. Kc6 {[%clk 0:00:11]}  Bd6 {[%clk 0:00:09]} 50. Kb7 {[%clk 0:00:09]}  Rf8 {[%clk 0:00:05]} 51. a8=Q {[%clk 0:00:09]}  Rxa8 {[%clk 0:00:06]} 52. Kxa8 {[%clk 0:00:09]}  d3 {[%clk 0:00:07]} 53. b7 {[%clk 0:00:06]}  f4 {[%clk 0:00:07]} 54. b8=Q {[%clk 0:00:05]}  Bxb8 {[%clk 0:00:07]} 55. Kxb8 {[%clk 0:00:06]}  d2 {[%clk 0:00:06]} 56. Kb7 {[%clk 0:00:05]}  Kd4 {[%clk 0:00:06]} 57. Be2 {[%clk 0:00:03]}  f3 {[%clk 0:00:05]} 58. Bd1 {[%clk 0:00:03]}  Ke3 {[%clk 0:00:02]} 59. Kc6 {[%clk 0:00:02]}  Kd4 {[%clk 0:00:03]} 60. Kb5 {[%clk 0:00:02]}  h5 {[%clk 0:00:03]} 61. h4 {[%clk 0:00:01]}  Ke3 {[%clk 0:00:03]} 62. Kb4 {[%clk 0:00:02]}  Kf4 {[%clk 0:00:04]} 63. Kc3 {[%clk 0:00:02]}  Kg3 {[%clk 0:00:04]} 64. Kxd2 {[%clk 0:00:02]}  Kg2 {[%clk 0:00:05]} 65. Ke1 {[%clk 0:00:01]}  Kg3 {[%clk 0:00:05]} 66. Bxf3 {[%clk 0:00:02]}  exf3 {[%clk 0:00:06]} 67. Kd2 {[%clk 0:00:02]}  Kg2 {[%clk 0:00:05]} 68. Ke1 {[%clk 0:00:03]}  Kg3 {[%clk 0:00:05]} 69. Rg1+ {[%clk 0:00:03]}  Kh2 {[%clk 0:00:05]} 70. Kf2 {[%clk 0:00:04]}  Kh3 {[%clk 0:00:05]} 71. Rg3+ {[%clk 0:00:04]}  Kh2 {[%clk 0:00:06]} 72. Kxf3 {[%clk 0:00:04]}  Kh1 {[%clk 0:00:07]} 73. Kf2 {[%clk 0:00:05]}  Kh2 {[%clk 0:00:08]} 74. Rf3 {[%clk 0:00:05]}  Kh1 {[%clk 0:00:09]} 75. Rh3# {[%clk 0:00:06]} 1-0


[Site "https://www.chess.com"]

[Event "Titled Tuesday Blitz June 20 Late 2023"]
[White "Mikaelyan, Arman"]
[Black "Salimova, Nurgyul"]
[WhiteFideId "13304852"]
[BlackFideId "2915138"]
[WhiteElo "2456"]
[BlackElo "2343"]
[Result "1-0"]
[Round "4"]
[TimeControl "180+2"]
[Date "2023.06.20"]
[WhiteClock "0:00:39"]
[BlackClock "0:00:10"]
[Board "13"]

1. d4 {[%clk 0:03:00]}  d5 {[%clk 0:02:55]} 2. c4 {[%clk 0:03:00]}  c6 {[%clk 0:02:54]} 3. Nf3 {[%clk 0:03:00]}  Nf6 {[%clk 0:02:53]} 4. Qc2 {[%clk 0:02:55]}  g6 {[%clk 0:02:49]} 5. Nbd2 {[%clk 0:02:39]}  Bf5 {[%clk 0:02:38]} 6. Qb3 {[%clk 0:02:39]}  Qb6 {[%clk 0:02:37]} 7. e3 {[%clk 0:02:37]}  Bg7 {[%clk 0:02:29]} 8. cxd5 {[%clk 0:02:36]}  cxd5 {[%clk 0:02:26]} 9. Qxb6 {[%clk 0:02:17]}  axb6 {[%clk 0:02:27]} 10. Nh4 {[%clk 0:02:18]}  Bd7 {[%clk 0:02:25]} 11. Bd3 {[%clk 0:02:06]}  Nc6 {[%clk 0:02:25]} 12. a3 {[%clk 0:02:07]}  e5 {[%clk 0:02:22]} 13. dxe5 {[%clk 0:01:47]}  Nxe5 {[%clk 0:02:23]} 14. Be2 {[%clk 0:01:47]}  Ne4 {[%clk 0:02:19]} 15. O-O {[%clk 0:01:45]}  O-O {[%clk 0:02:17]} 16. Nhf3 {[%clk 0:01:44]}  Nxf3+ {[%clk 0:02:15]} 17. Nxf3 {[%clk 0:01:41]}  Rfc8 {[%clk 0:02:14]} 18. Rd1 {[%clk 0:01:37]}  Ra5 {[%clk 0:01:36]} 19. Nd4 {[%clk 0:01:34]}  Ba4 {[%clk 0:01:31]} 20. Rf1 {[%clk 0:01:26]}  Bxd4 {[%clk 0:01:25]} 21. exd4 {[%clk 0:01:27]}  Bb5 {[%clk 0:01:24]} 22. Bxb5 {[%clk 0:01:27]}  Rxb5 {[%clk 0:01:24]} 23. b4 {[%clk 0:01:28]}  Rc4 {[%clk 0:00:57]} 24. Be3 {[%clk 0:01:22]}  Nd6 {[%clk 0:00:53]} 25. Rfd1 {[%clk 0:01:16]}  Rc3 {[%clk 0:00:43]} 26. Rdc1 {[%clk 0:01:06]}  Rb3 {[%clk 0:00:39]} 27. Rcb1 {[%clk 0:01:01]}  Rxb1+ {[%clk 0:00:15]} 28. Rxb1 {[%clk 0:01:02]}  Ne4 {[%clk 0:00:16]} 29. Rb3 {[%clk 0:00:53]}  f5 {[%clk 0:00:14]} 30. a4 {[%clk 0:00:46]}  Nc3 {[%clk 0:00:14]} 31. axb5 {[%clk 0:00:43]}  Nxb5 {[%clk 0:00:15]} 32. Rb1 {[%clk 0:00:41]}  Nc3 {[%clk 0:00:14]} 33. Ra1 {[%clk 0:00:41]}  Nb5 {[%clk 0:00:13]} 34. Ra8+ {[%clk 0:00:40]}  Kf7 {[%clk 0:00:13]} 35. Rb8 {[%clk 0:00:40]}  Nd6 {[%clk 0:00:10]} 36. Bf4 {[%clk 0:00:40]}  Nc4 {[%clk 0:00:10]} 37. Rxb7+ {[%clk 0:00:40]}  Ke6 {[%clk 0:00:10]} 38. Rxh7 {[%clk 0:00:39]} 1-0


[Site "https://www.chess.com"]

[Event "Titled Tuesday Blitz June 20 Late 2023"]
[White "Eljanov, Pavel"]
[Black "Suarez Uriel, Adrian"]
[WhiteFideId "14102951"]
[BlackFideId "22230874"]
[WhiteElo "2598"]
[BlackElo "2331"]
[Result "1/2-1/2"]
[Round "4"]
[TimeControl "180+2"]
[Date "2023.06.20"]
[WhiteClock "0:00:06"]
[BlackClock "0:00:21"]
[Board "15"]

1. d4 {[%clk 0:03:00]}  Nf6 {[%clk 0:02:59]} 2. c4 {[%clk 0:03:00]}  g6 {[%clk 0:02:59]} 3. Nc3 {[%clk 0:03:00]}  d5 {[%clk 0:03:00]} 4. cxd5 {[%clk 0:03:00]}  Nxd5 {[%clk 0:03:01]} 5. e4 {[%clk 0:03:00]}  Nxc3 {[%clk 0:03:01]} 6. bxc3 {[%clk 0:03:01]}  Bg7 {[%clk 0:03:02]} 7. Nf3 {[%clk 0:03:02]}  c5 {[%clk 0:03:02]} 8. h3 {[%clk 0:03:03]}  O-O {[%clk 0:03:01]} 9. Be2 {[%clk 0:03:03]}  b6 {[%clk 0:03:00]} 10. Be3 {[%clk 0:02:53]}  Bb7 {[%clk 0:03:00]} 11. Qd3 {[%clk 0:02:53]}  Nd7 {[%clk 0:02:53]} 12. O-O {[%clk 0:02:48]}  e6 {[%clk 0:02:54]} 13. e5 {[%clk 0:02:34]}  Bxf3 {[%clk 0:02:49]} 14. gxf3 {[%clk 0:02:34]}  cxd4 {[%clk 0:02:49]} 15. cxd4 {[%clk 0:02:34]}  Qh4 {[%clk 0:02:44]} 16. Kg2 {[%clk 0:02:27]}  Bh6 {[%clk 0:02:42]} 17. Qe4 {[%clk 0:02:25]}  Qxe4 {[%clk 0:02:20]} 18. fxe4 {[%clk 0:02:25]}  Bxe3 {[%clk 0:02:20]} 19. fxe3 {[%clk 0:02:25]}  Rfc8 {[%clk 0:02:03]} 20. Rac1 {[%clk 0:02:24]}  a5 {[%clk 0:01:59]} 21. Bb5 {[%clk 0:02:21]}  Nf8 {[%clk 0:01:53]} 22. h4 {[%clk 0:02:17]}  h6 {[%clk 0:01:49]} 23. Kf3 {[%clk 0:02:17]}  Kg7 {[%clk 0:01:49]} 24. d5 {[%clk 0:02:16]}  g5 {[%clk 0:01:47]} 25. h5 {[%clk 0:02:15]}  Rd8 {[%clk 0:01:41]} 26. d6 {[%clk 0:02:04]}  Nd7 {[%clk 0:01:39]} 27. Bxd7 {[%clk 0:02:04]}  Rxd7 {[%clk 0:01:40]} 28. a4 {[%clk 0:01:58]}  Rb8 {[%clk 0:01:38]} 29. Rb1 {[%clk 0:01:47]}  f6 {[%clk 0:01:37]} 30. exf6+ {[%clk 0:01:41]}  Kxf6 {[%clk 0:01:38]} 31. Kg4+ {[%clk 0:01:35]}  Ke5 {[%clk 0:01:36]} 32. Rfd1 {[%clk 0:01:26]}  b5 {[%clk 0:01:18]} 33. Rbc1 {[%clk 0:01:12]}  b4 {[%clk 0:01:09]} 34. Rc5+ {[%clk 0:01:12]}  Kxe4 {[%clk 0:01:10]} 35. Rxa5 {[%clk 0:01:01]}  b3 {[%clk 0:01:10]} 36. Rb5 {[%clk 0:00:58]}  Rxb5 {[%clk 0:01:07]} 37. axb5 {[%clk 0:00:59]}  Ke5 {[%clk 0:01:08]} 38. Rb1 {[%clk 0:00:51]}  Rxd6 {[%clk 0:01:08]} 39. Rxb3 {[%clk 0:00:51]}  Rb6 {[%clk 0:01:08]} 40. Rb1 {[%clk 0:00:44]}  Ke4 {[%clk 0:01:06]} 41. Rb3 {[%clk 0:00:40]}  Kd5 {[%clk 0:01:03]} 42. Rb1 {[%clk 0:00:19]}  Kc4 {[%clk 0:01:03]} 43. Rc1+ {[%clk 0:00:18]}  Kxb5 {[%clk 0:01:02]} 44. Rc8 {[%clk 0:00:18]}  Rc6 {[%clk 0:01:02]} 45. Rh8 {[%clk 0:00:17]}  e5 {[%clk 0:01:00]} 46. Kf5 {[%clk 0:00:17]}  Kc4 {[%clk 0:00:57]} 47. Rd8 {[%clk 0:00:16]}  g4 {[%clk 0:00:40]} 48. e4 {[%clk 0:00:16]}  g3 {[%clk 0:00:40]} 49. Rg8 {[%clk 0:00:16]}  Kd4 {[%clk 0:00:39]} 50. Rxg3 {[%clk 0:00:16]}  Rc2 {[%clk 0:00:37]} 51. Rg4 {[%clk 0:00:14]}  Rf2+ {[%clk 0:00:32]} 52. Kg6 {[%clk 0:00:14]}  Rf4 {[%clk 0:00:32]} 53. Rg1 {[%clk 0:00:10]}  Kxe4 {[%clk 0:00:30]} 54. Kxh6 {[%clk 0:00:11]}  Kf5 {[%clk 0:00:28]} 55. Kg7 {[%clk 0:00:09]}  e4 {[%clk 0:00:18]} 56. h6 {[%clk 0:00:09]}  Rh4 {[%clk 0:00:18]} 57. h7 {[%clk 0:00:04]}  Kf4 {[%clk 0:00:18]} 58. Rg6 {[%clk 0:00:04]}  Rxh7+ {[%clk 0:00:18]} 59. Kxh7 {[%clk 0:00:04]}  e3 {[%clk 0:00:19]} 60. Re6 {[%clk 0:00:04]}  Kf3 {[%clk 0:00:19]} 61. Kg6 {[%clk 0:00:05]}  e2 {[%clk 0:00:20]} 62. Kg5 {[%clk 0:00:05]}  Kf2 {[%clk 0:00:20]} 63. Kf4 {[%clk 0:00:06]}  e1=Q {[%clk 0:00:21]} 64. Rxe1 {[%clk 0:00:06]}  Kxe1 {[%clk 0:00:21]} 1/2-1/2


[Site "https://www.chess.com"]

[Event "Titled Tuesday Blitz June 20 Late 2023"]
[White "Papasimakopoulos, Alexandros"]
[Black "Erdogmus, Yagiz Kaan"]
[WhiteFideId "4244125"]
[BlackFideId "44599790"]
[WhiteElo "2359"]
[BlackElo "2359"]
[Result "0-1"]
[Round "4"]
[TimeControl "180+2"]
[Date "2023.06.20"]
[WhiteClock "0:00:09"]
[BlackClock "0:00:07"]
[Board "24"]

1. d4 {[%clk 0:02:54]}  Nf6 {[%clk 0:02:54]} 2. c4 {[%clk 0:02:54]}  e6 {[%clk 0:02:54]} 3. Nc3 {[%clk 0:02:53]}  d5 {[%clk 0:02:54]} 4. cxd5 {[%clk 0:02:53]}  exd5 {[%clk 0:02:55]} 5. Bg5 {[%clk 0:02:51]}  c6 {[%clk 0:02:55]} 6. e3 {[%clk 0:02:51]}  Bd6 {[%clk 0:02:55]} 7. Bd3 {[%clk 0:02:51]}  O-O {[%clk 0:02:54]} 8. Qc2 {[%clk 0:02:51]}  h6 {[%clk 0:02:54]} 9. Bh4 {[%clk 0:02:52]}  Re8 {[%clk 0:02:54]} 10. Nf3 {[%clk 0:02:52]}  Bg4 {[%clk 0:02:51]} 11. Bg3 {[%clk 0:02:52]}  a5 {[%clk 0:02:49]} 12. Ne5 {[%clk 0:02:48]}  Be6 {[%clk 0:02:47]} 13. O-O {[%clk 0:02:46]}  Nh5 {[%clk 0:02:46]} 14. f4 {[%clk 0:02:44]}  Nxg3 {[%clk 0:02:46]} 15. hxg3 {[%clk 0:02:45]}  Nd7 {[%clk 0:02:44]} 16. f5 {[%clk 0:02:38]}  Nxe5 {[%clk 0:02:44]} 17. fxe6 {[%clk 0:02:38]}  Rxe6 {[%clk 0:02:43]} 18. dxe5 {[%clk 0:02:37]}  Rxe5 {[%clk 0:02:44]} 19. e4 {[%clk 0:02:35]}  Bc5+ {[%clk 0:02:43]} 20. Rf2 {[%clk 0:02:32]}  Qf6 {[%clk 0:02:31]} 21. exd5 {[%clk 0:02:28]}  cxd5 {[%clk 0:02:29]} 22. Rf1 {[%clk 0:02:17]}  Rae8 {[%clk 0:02:28]} 23. Bb5 {[%clk 0:02:09]}  R8e7 {[%clk 0:02:24]} 24. Qd2 {[%clk 0:02:01]}  Qb6 {[%clk 0:02:10]} 25. a4 {[%clk 0:01:44]}  Be3 {[%clk 0:02:03]} 26. Nxd5 {[%clk 0:01:39]}  Bxf2+ {[%clk 0:01:49]} 27. Rxf2 {[%clk 0:01:34]}  Re1+ {[%clk 0:00:51]} 28. Kh2 {[%clk 0:01:28]}  R7e5 {[%clk 0:00:32]} 29. Nf4 {[%clk 0:01:20]}  Qf6 {[%clk 0:00:29]} 30. Be2 {[%clk 0:01:06]}  Ra1 {[%clk 0:00:24]} 31. b3 {[%clk 0:00:52]}  Qg5 {[%clk 0:00:18]} 32. Qc3 {[%clk 0:00:46]}  Ra3 {[%clk 0:00:08]} 33. Nh3 {[%clk 0:00:40]}  Qe7 {[%clk 0:00:08]} 34. Qb2 {[%clk 0:00:36]}  Re3 {[%clk 0:00:07]} 35. Bc4 {[%clk 0:00:36]}  Qd6 {[%clk 0:00:07]} 36. Nf4 {[%clk 0:00:31]}  g5 {[%clk 0:00:07]} 37. Rd2 {[%clk 0:00:30]}  Qe5 {[%clk 0:00:04]} 38. Rd8+ {[%clk 0:00:19]}  Kg7 {[%clk 0:00:04]} 39. Qxe5+ {[%clk 0:00:19]}  Rxe5 {[%clk 0:00:04]} 40. Nd3 {[%clk 0:00:19]}  Re2 {[%clk 0:00:03]} 41. Rd7 {[%clk 0:00:19]}  Raa2 {[%clk 0:00:04]} 42. Bd5 {[%clk 0:00:13]}  Rad2 {[%clk 0:00:03]} 43. Nc1 {[%clk 0:00:11]}  Rxg2+ {[%clk 0:00:02]} 44. Bxg2 {[%clk 0:00:12]}  Rxd7 {[%clk 0:00:02]} 45. Ne2 {[%clk 0:00:07]}  Rd3 {[%clk 0:00:03]} 46. Bxb7 {[%clk 0:00:06]}  Rxb3 {[%clk 0:00:03]} 47. Bc6 {[%clk 0:00:06]}  Rb2 {[%clk 0:00:03]} 48. Bb5 {[%clk 0:00:06]}  Ra2 {[%clk 0:00:03]} 49. g4 {[%clk 0:00:06]}  Kg6 {[%clk 0:00:03]} 50. Kg3 {[%clk 0:00:06]}  f5 {[%clk 0:00:03]} 51. gxf5+ {[%clk 0:00:05]}  Kxf5 {[%clk 0:00:03]} 52. Nd4+ {[%clk 0:00:05]}  Kf6 {[%clk 0:00:04]} 53. Nc6 {[%clk 0:00:06]}  h5 {[%clk 0:00:03]} 54. Nxa5 {[%clk 0:00:07]}  h4+ {[%clk 0:00:04]} 55. Kh3 {[%clk 0:00:07]}  Ra3+ {[%clk 0:00:04]} 56. Kg2 {[%clk 0:00:05]}  g4 {[%clk 0:00:04]} 57. Nc4 {[%clk 0:00:05]}  Ra2+ {[%clk 0:00:04]} 58. Kg1 {[%clk 0:00:06]}  Kg5 {[%clk 0:00:04]} 59. Nd6 {[%clk 0:00:05]}  h3 {[%clk 0:00:05]} 60. Ne4+ {[%clk 0:00:05]}  Kh4 {[%clk 0:00:05]} 61. Bc6 {[%clk 0:00:04]}  g3 {[%clk 0:00:05]} 62. Nxg3 {[%clk 0:00:05]}  Kxg3 {[%clk 0:00:06]} 63. Kf1 {[%clk 0:00:04]}  h2 {[%clk 0:00:05]} 64. Ke1 {[%clk 0:00:05]}  Rxa4 {[%clk 0:00:05]} 65. Bxa4 {[%clk 0:00:05]}  h1=Q+ {[%clk 0:00:06]} 66. Kd2 {[%clk 0:00:06]}  Qe4 {[%clk 0:00:06]} 67. Kc3 {[%clk 0:00:07]}  Qxa4 {[%clk 0:00:06]} 68. Kb2 {[%clk 0:00:08]}  Kf4 {[%clk 0:00:06]} 69. Kc3 {[%clk 0:00:08]}  Ke3 {[%clk 0:00:06]} 70. Kb2 {[%clk 0:00:09]}  Kd2 {[%clk 0:00:06]} 71. Kb1 {[%clk 0:00:09]}  Kc3 {[%clk 0:00:06]} 72. Kc1 {[%clk 0:00:09]}  Qa1# {[%clk 0:00:07]} 0-1


[Site "https://www.chess.com"]

[Event "Titled Tuesday Blitz June 20 Late 2023"]
[White "Jarmula, Lukasz"]
[Black "Elsa167"]
[WhiteFideId "1160664"]
[WhiteElo "2372"]
[BlackElo "2825"]
[Result "0-1"]
[Round "4"]
[TimeControl "180+2"]
[Date "2023.06.20"]
[WhiteClock "0:00:31"]
[BlackClock "0:00:29"]
[Board "25"]

1. Nf3 {[%clk 0:03:00]}  Nf6 {[%clk 0:03:00]} 2. e3 {[%clk 0:02:59]}  g6 {[%clk 0:02:58]} 3. b4 {[%clk 0:02:59]}  Bg7 {[%clk 0:02:58]} 4. Bb2 {[%clk 0:02:59]}  O-O {[%clk 0:02:59]} 5. Be2 {[%clk 0:02:59]}  d6 {[%clk 0:02:59]} 6. O-O {[%clk 0:02:58]}  Nbd7 {[%clk 0:03:00]} 7. c4 {[%clk 0:02:54]}  e5 {[%clk 0:02:58]} 8. d3 {[%clk 0:02:54]}  a5 {[%clk 0:02:57]} 9. b5 {[%clk 0:02:54]}  b6 {[%clk 0:02:58]} 10. Nc3 {[%clk 0:02:53]}  Bb7 {[%clk 0:02:58]} 11. Nd2 {[%clk 0:02:53]}  Nc5 {[%clk 0:02:57]} 12. Qc2 {[%clk 0:02:51]}  Re8 {[%clk 0:02:55]} 13. Rfe1 {[%clk 0:02:50]}  Qd7 {[%clk 0:02:49]} 14. Bf3 {[%clk 0:02:49]}  Bxf3 {[%clk 0:02:42]} 15. Nxf3 {[%clk 0:02:49]}  Nxd3 {[%clk 0:02:25]} 16. Qxd3 {[%clk 0:02:48]}  e4 {[%clk 0:02:25]} 17. Qd1 {[%clk 0:02:35]}  exf3 {[%clk 0:02:25]} 18. Qxf3 {[%clk 0:02:35]}  Rac8 {[%clk 0:02:09]} 19. Rad1 {[%clk 0:02:34]}  Qe6 {[%clk 0:02:07]} 20. Nd5 {[%clk 0:02:32]}  Ne4 {[%clk 0:02:01]} 21. Bxg7 {[%clk 0:02:28]}  Kxg7 {[%clk 0:02:02]} 22. Rd4 {[%clk 0:02:23]}  f5 {[%clk 0:02:02]} 23. Qd1 {[%clk 0:02:22]}  Rf8 {[%clk 0:01:58]} 24. Qa1 {[%clk 0:02:20]}  Kg8 {[%clk 0:01:52]} 25. Rdd1 {[%clk 0:02:13]}  Rf7 {[%clk 0:01:51]} 26. Re2 {[%clk 0:02:06]}  Rcf8 {[%clk 0:01:49]} 27. Rc2 {[%clk 0:01:59]}  Re8 {[%clk 0:01:47]} 28. Nf4 {[%clk 0:01:58]}  Qf6 {[%clk 0:01:45]} 29. Qc1 {[%clk 0:01:53]}  Qg7 {[%clk 0:01:33]} 30. Nd5 {[%clk 0:01:52]}  Nf6 {[%clk 0:01:32]} 31. Nxf6+ {[%clk 0:01:51]}  Qxf6 {[%clk 0:01:33]} 32. Qd2 {[%clk 0:01:47]}  Re5 {[%clk 0:01:32]} 33. Qd4 {[%clk 0:01:43]}  Qe6 {[%clk 0:01:29]} 34. h3 {[%clk 0:01:38]}  Re4 {[%clk 0:01:06]} 35. Qd3 {[%clk 0:01:26]}  f4 {[%clk 0:01:04]} 36. exf4 {[%clk 0:01:24]}  Rfxf4 {[%clk 0:01:04]} 37. Qd5 {[%clk 0:01:16]}  Qxd5 {[%clk 0:00:56]} 38. cxd5 {[%clk 0:01:15]}  Rc4 {[%clk 0:00:56]} 39. Rdc1 {[%clk 0:01:15]}  Rc5 {[%clk 0:00:56]} 40. Rxc5 {[%clk 0:01:07]}  bxc5 {[%clk 0:00:40]} 41. Re1 {[%clk 0:00:46]}  Kf7 {[%clk 0:00:40]} 42. Re6 {[%clk 0:00:42]}  Rb4 {[%clk 0:00:37]} 43. a4 {[%clk 0:00:41]}  Rxa4 {[%clk 0:00:32]} 44. b6 {[%clk 0:00:41]}  cxb6 {[%clk 0:00:33]} 45. Rxd6 {[%clk 0:00:41]}  Rb4 {[%clk 0:00:32]} 46. Rc6 {[%clk 0:00:41]}  Ke7 {[%clk 0:00:29]} 47. Rc7+ {[%clk 0:00:39]}  Kd6 {[%clk 0:00:29]} 48. Rxh7 {[%clk 0:00:39]}  a4 {[%clk 0:00:30]} 49. Rg7 {[%clk 0:00:39]}  a3 {[%clk 0:00:28]} 50. Rxg6+ {[%clk 0:00:39]}  Kxd5 {[%clk 0:00:29]} 51. Rg8 {[%clk 0:00:31]}  a2 {[%clk 0:00:29]} 0-1


[Site "https://www.chess.com"]

[Event "Titled Tuesday Blitz June 20 Late 2023"]
[White "Leenhouts, Koen"]
[Black "Bordi, Kevin"]
[WhiteFideId "1008439"]
[BlackFideId "621862"]
[WhiteElo "2409"]
[BlackElo "2799"]
[Result "0-1"]
[Round "4"]
[TimeControl "180+2"]
[Date "2023.06.20"]
[WhiteClock "0:00:02"]
[BlackClock "0:00:24"]
[Board "27"]

1. e4 {[%clk 0:03:00]}  d5 {[%clk 0:03:00]} 2. exd5 {[%clk 0:03:00]}  Qxd5 {[%clk 0:03:01]} 3. Nc3 {[%clk 0:03:00]}  Qa5 {[%clk 0:03:01]} 4. b4 {[%clk 0:02:59]}  Qxb4 {[%clk 0:03:00]} 5. Rb1 {[%clk 0:03:00]}  Qd6 {[%clk 0:03:01]} 6. Nf3 {[%clk 0:02:59]}  Nf6 {[%clk 0:03:02]} 7. Bc4 {[%clk 0:02:51]}  c6 {[%clk 0:03:02]} 8. O-O {[%clk 0:02:50]}  b5 {[%clk 0:03:02]} 9. Bb3 {[%clk 0:02:46]}  Bf5 {[%clk 0:03:01]} 10. a4 {[%clk 0:02:45]}  b4 {[%clk 0:03:00]} 11. Ne2 {[%clk 0:02:42]}  e6 {[%clk 0:03:00]} 12. Ng3 {[%clk 0:02:40]}  Bg6 {[%clk 0:02:55]} 13. Bb2 {[%clk 0:02:33]}  Be7 {[%clk 0:02:54]} 14. Re1 {[%clk 0:02:32]}  Nbd7 {[%clk 0:02:53]} 15. Ng5 {[%clk 0:02:24]}  O-O {[%clk 0:02:50]} 16. Nxe6 {[%clk 0:02:22]}  Rfe8 {[%clk 0:02:42]} 17. Nd4 {[%clk 0:02:07]}  Bf8 {[%clk 0:02:22]} 18. Ngf5 {[%clk 0:02:00]}  Qc5 {[%clk 0:02:13]} 19. Qf3 {[%clk 0:01:53]}  Ne5 {[%clk 0:02:13]} 20. Qg3 {[%clk 0:01:49]}  Nc4 {[%clk 0:02:06]} 21. Bxc4 {[%clk 0:01:36]}  Qxc4 {[%clk 0:02:07]} 22. Ne3 {[%clk 0:01:35]}  Qa6 {[%clk 0:02:01]} 23. Ndf5 {[%clk 0:01:03]}  Ne4 {[%clk 0:01:38]} 24. Qh4 {[%clk 0:00:42]}  Nxd2 {[%clk 0:01:31]} 25. Nh6+ {[%clk 0:00:38]}  Kh8 {[%clk 0:01:23]} 26. Rbd1 {[%clk 0:00:34]}  Ne4 {[%clk 0:01:18]} 27. Nef5 {[%clk 0:00:30]}  Nc3 {[%clk 0:01:17]} 28. Rxe8 {[%clk 0:00:19]}  Rxe8 {[%clk 0:01:14]} 29. Bxc3 {[%clk 0:00:06]}  bxc3 {[%clk 0:01:14]} 30. Rd8 {[%clk 0:00:02]}  Re1# {[%clk 0:00:24]} 0-1


[Site "https://www.chess.com"]